Cogmind - Beta 16.1 @@@ ROGUE MODE // 2026.02.25 @ 12:18:51 Player: Anting Result: Self-destructed Performance ------------- Evolutions (2) 1000 Regions Visited (7) 1400 Robots Destroyed (60) 300 Value Destroyed (1170) 1170 Prototype IDs (39) 780 Alien Tech Used (0) 0 Bonus (300) 300 TOTAL SCORE: 4950 Bonus ------- Aligned with FarCom 300 Cogmind --------- Core Integrity 522/550 Matter 235/300 Energy 160/160 System Corruption 0% Temperature Cool (0) Movement Treading (240) Ox1 Location -8/Materials Parts ------- > --- POWER (1) -------- Light Nuclear Core > --- PROPULSION (4) --- Light Treads Light Treads Light Treads Light Treads > --- UTILITY (4) ------ Advanced Heat Sink Huge Storage Unit Light Armor Plating > --- WEAPON (2) ------- Assault Rifle > --- INVENTORY (25) --- Light Nuclear Core Light Treads Light Treads Light Treads Light Treads Flight Unit Flight Unit Flight Unit Flight Unit Improved Heat Sink Medium Storage Unit Machine Analyzer Improved Light Armor Plating System Shield Assault Rifle Assault Rifle XL Autogun Array Mini Grenade Launcher Datajack Peak State ------------ > --- POWER ------------ Light Nuclear Core > --- PROPULSION ------- Light Treads Light Treads Light Treads Light Treads > --- UTILITY ---------- Advanced Heat Sink Huge Storage Unit Light Armor Plating Light Armor Plating > --- WEAPON ----------- Assault Rifle Heavy Assault Rifle > --- INVENTORY -------- Light Treads Light Treads Light Treads Light Treads Light Treads Light Treads Flight Unit Flight Unit Flight Unit Flight Unit Medium Storage Unit Machine Analyzer Light Armor Plating Improved Light Armor Plating System Shield Assault Rifle Assault Rifle XL Autogun Array Mini Grenade Launcher Datajack [Rating: 24] Favorites ----------- Power Light Ion Engine Engine Light Ion Engine Power Core Light Nuclear Core Propulsion Light Treads Treads Light Treads Leg Aluminum Leg Utility Seismic Detector Device Seismic Detector Storage High-capacity Storage Unit Protection Light Armor Plating Weapon Assault Rifle Energy Cannon Advanced Beam Cannon Ballistic Gun Assault Rifle Special Melee Weapon Datajack Build | -11 -10 -10 -9 -9 -9 -8 -8 ------- Run | Yrd Mat Min Mat Min Exi Min Mat Slots Evolved 4 | . . . 2 . . . 2 Power . | . . . . . . . . Propulsion 2 | . . . 1 . . . 1 Utility 2 | . . . 1 . . . 1 Weapon . | . . . . . . . . Parts Attached 37 | 8 12 . 10 . 1 5 1 Power 6 | 1 2 . 2 . . 1 . Engine 5 | 1 2 . 2 . . . . Core 1 | . . . . . . 1 . Reactor . | . . . . . . . . Propulsion 11 | 3 4 . 3 . . . 1 Treads 7 | 1 2 . 3 . . . 1 Leg 4 | 2 2 . . . . . . Wheel . | . . . . . . . . Hover . | . . . . . . . . Flight . | . . . . . . . . Utility 11 | 2 4 . 2 . . 3 . Device 4 | 1 1 . 1 . . 1 . Storage 3 | 1 2 . . . . . . Processor . | . . . . . . . . Hackware . | . . . . . . . . Protection 4 | . 1 . 1 . . 2 . Artifact . | . . . . . . . . Weapon 9 | 2 2 . 3 . 1 1 . Energy Gun . | . . . . . . . . Energy Cannon 1 | . . . 1 . . . . Ballistic Gun 7 | 2 2 . 2 . . 1 . Ballistic Cannon . | . . . . . . . . Launcher . | . . . . . . . . Special Weapon . | . . . . . . . . Impact Weapon . | . . . . . . . . Slashing Weapon . | . . . . . . . . Piercing Weapon . | . . . . . . . . Special Melee Weapon 1 | . . . . . 1 . . Unidentified Prototypes 2 | . . . 2 . . . . Parts Lost 13 | . 5 . 1 . . 2 5 Power 2 | . 1 . . . . 1 . Propulsion 4 | . 2 . . . . . 2 Utility 3 | . . . 1 . . . 2 Weapon 4 | . 2 . . . . 1 1 Highest Loss Streak 3 | . 3 . 1 . . 2 3 To Critical Strikes . | . . . . . . . . Average Backups 19 | 2 17 20 22 25 23 21 19 Power . | . 1 . . . . . . Propulsion 7 | 1 4 8 9 11 11 11 8 Utility 5 | . 4 6 6 7 6 4 5 Weapon 5 | . 6 5 5 6 6 4 4 Tool/Special . | . . . . . . . . Unused Backups 24 | . 2 1 1 . 3 . 17 Power 1 | . . . . . . . 1 Propulsion 7 | . . . . . . . 7 Utility 9 | . 1 1 1 . 1 . 5 Weapon 7 | . 1 . . . 2 . 4 Tool/Special . | . . . . . . . . Average Slot Usage (%) 97 | . 96 100 93 100 100 99 94 Engine 11 | . 14 14 11 11 11 9 . Treads 15 | . 9 . 19 33 33 33 35 Leg 13 | . 16 28 11 . . . . Device 10 | . 12 12 11 11 11 1 9 Storage 12 | . 14 14 11 11 11 11 9 Protection 5 | . 1 1 7 11 11 20 13 Ballistic Gun 24 | . 27 28 22 22 15 22 17 Peak Build Rating 24 | 7 9 9 15 14 17 22 24 Average Rating 11 | 4 8 9 12 14 14 16 23 On Entrance 11 | . 7 9 9 14 14 17 22 Avg Prop Armor Cover (%) 4 | . . . 4 . . . . Naked Turns . | . . . . . . . . Heaviest Build 97 | 12 87 50 97 95 95 97 97 Greatest Support 80 | 20 40 20 60 60 60 60 80 Greatest Overweight (x) 8 | . 8 2 2 1 1 1 1 Average Overweight (x) 1 | . 2 2 1 1 1 1 1 Largest Inventory Capacity 25 | 8 25 20 25 25 25 25 25 Average Capacity 22 | 6 21 20 23 25 25 25 25 Most Carried 25 | 4 20 20 25 25 25 25 24 Average Carried 20 | 2 17 20 22 25 24 24 22 Final Capacity 25 | 8 20 20 25 25 25 25 25 Final Carried 25 | 4 20 20 25 25 25 25 22 Class Distribution -------------------- 59% | Mutant 40% | Scavenger-Mutant Dominant Class ---------------- Mutant | -10/Materials Mutant | -10/Mines Scavenger-Mutant | -9/Materials Scavenger-Mutant | -9/Mines Scavenger-Mutant | -9/Exiles Scavenger-Mutant | -8/Mines Scavenger-Mutant | -8/Materials Resources | -11 -10 -10 -9 -9 -9 -8 -8 ----------- Run | Yrd Mat Min Mat Min Exi Min Mat Matter Collected 1651 | 308 530 10 516 . . 130 157 Remotely . | . . . . . . . . Salvage Created 2216 | 90 934 . 867 . . 109 216 Parts 135 | 8 62 . 52 . . 5 8 Haulers Intercepted 5 | . 2 . 3 . . . . Recyclers Shooed 8 | . 7 . 1 . . . . Parts Field Recycled . | . . . . . . . . Retrieved Matter . | . . . . . . . . Parts Self-Destructed . | . . . . . . . . Prevented . | . . . . . . . . Parts Restored . | . . . . . . . . Kills | -11 -10 -10 -9 -9 -9 -8 -8 ------- Run | Yrd Mat Min Mat Min Exi Min Mat Combat Hostiles Destroyed 29 | . 17 . 7 . . 2 3 Guns 29 | . 17 . 7 . . 2 3 Classes Destroyed 12 | 2 6 . 2 . . . 2 Worker 5 | . 2 . 2 . . . 1 Builder 1 | . . . . . . . 1 Tunneler 4 | 2 2 . . . . . . Hauler 5 | . 2 . 3 . . . . Recycler 6 | 1 3 . 2 . . . . Mechanic 1 | . . . 1 . . . . Operator 1 | . 1 . . . . . . Watcher 8 | . 3 . 5 . . . . Swarmer 8 | . 8 . . . . . . Grunt 17 | . 9 . 4 . . 2 2 Sentry 3 | . . . 3 . . . . Hunter 1 | . . . . . . . 1 Best Kill Streak 5 | 3 4 . 5 . . 2 2 Combat Bots Only 3 | . 3 . 3 . . 2 1 Max Kills in Single Turn 2 | 1 2 . 1 . . 1 1 Gunslinging 1 | . 1 . . . . . . Exploded . | . . . . . . . . Melee . | . . . . . . . . Uniques/NPCs Destroyed . | . . . . . . . . Combat | -11 -10 -10 -9 -9 -9 -8 -8 -------- Run | Yrd Mat Min Mat Min Exi Min Mat Hostile Shots Fired 233 | . 126 . 35 . . 20 52 Missed 69 | . 38 . 18 . . 2 11 Hits 164 | . 88 . 17 . . 18 41 Projectile 164 | . 88 . 17 . . 18 41 Critical Strikes 3 | . 1 . . . . 1 1 Damage Taken 2095 | . 879 . 270 . . 296 650 Core 242 | . 173 . 41 . . . 28 Absorbed by Shields . | . . . . . . . . Regen/Repaired (Parts) 15 | . 15 . . . . . . Core Remaining (%) 73 | 100 . 30 . . . 89 . Volleys Fired 201 | 7 97 . 56 . . 11 30 Largest 2 | 2 2 . 2 . . 2 2 Hottest 46 | 40 40 . 46 . . 46 43 Shots Fired 400 | 14 193 . 112 . . 22 59 Gun 400 | 14 193 . 112 . . 22 59 Cannon . | . . . . . . . . Launcher . | . . . . . . . . Special . | . . . . . . . . Kinetic 400 | 14 193 . 112 . . 22 59 Thermal . | . . . . . . . . Explosive . | . . . . . . . . Electromagnetic . | . . . . . . . . Robot Hit Streak 19 | 6 10 . 9 . . 19 12 Robot Miss Streak 6 | 1 5 . 6 . . 1 3 Penetration Max . | . . . . . . . . Secondary Targets 4 | . 2 . 1 . . 1 . Max Gunslinging Chain 1 | . 1 . 1 . . 1 . Shots Hit Robots 254 | 10 112 . 65 . 4 20 43 Core Hits 108 | 5 50 1 33 . . 6 13 Critical Kills 1 | . 1 . . . . . . Critical Parts Destroyed 2 | . . . 1 . . . 1 Critical Strikes 3 | . 1 . 1 . . . 1 Destroy 3 | . 1 . 1 . . . 1 Melee Attacks 4 | . . . . . 4 . . Impact . | . . . . . . . . Slashing . | . . . . . . . . Piercing . | . . . . . . . . Sneak Attacks 4 | . . . . . 4 . . Combat Hostiles . | . . . . . . . . Follow-up Attacks . | . . . . . . . . Damage Inflicted 3154 | 103 1256 7 961 . . 296 531 Guns 3143 | 103 1253 . 960 . . 296 531 Cannons . | . . . . . . . . Explosions . | . . . . . . . . Melee . | . . . . . . . . Ramming 11 | . 3 7 1 . . . . Kinetic 3143 | 103 1253 . 960 . . 296 531 Thermal . | . . . . . . . . Explosive . | . . . . . . . . Electromagnetic . | . . . . . . . . Impact . | . . . . . . . . Slashing . | . . . . . . . . Piercing . | . . . . . . . . Highest Corruption . | . . . . . . . . Average Corruption . | . . . . . . . . Corruption Purged . | . . . . . . . . Corruption Blocked . | . . . . . . . . Overload Shots . | . . . . . . . . Overflow Damage . | . . . . . . . . Projectiles . | . . . . . . . . Explosions . | . . . . . . . . Melee . | . . . . . . . . Knockbacks . | . . . . . . . . Impact . | . . . . . . . . Kinetic . | . . . . . . . . Secondary . | . . . . . . . . Self-Inflicted Damage . | . . . . . . . . Shots . | . . . . . . . . Rammed 1 | . . . 1 . . . . Targets Rammed 4 | . 1 2 1 . . . . Kicked 3 | . 1 2 . . . . . Crushed . | . . . . . . . . Highest Temperature 361 | . 24 . 361 . . 96 4 Average Temperature 33 | . 7 . 39 . . 57 4 Received Heat Transfer 810 | . 303 . 93 . . 180 234 Siege Activations . | . . . . . . . . Martial Activations . | . . . . . . . . Shielding Activations . | . . . . . . . . Robots Disrupted . | . . . . . . . . Combat Hostiles . | . . . . . . . . Robots Corrupted . | . . . . . . . . Combat Hostiles . | . . . . . . . . Parts Fried . | . . . . . . . . Impact Corruptions . | . . . . . . . . Robots Melted . | . . . . . . . . Combat Hostiles . | . . . . . . . . Parts Melted . | . . . . . . . . Heat Transferred . | . . . . . . . . Parts Sabotaged . | . . . . . . . . Parts Stolen . | . . . . . . . . Parts Stripped . | . . . . . . . . Power Chain Reactions . | . . . . . . . . Alert | -11 -10 -10 -9 -9 -9 -8 -8 ------- Run | Yrd Mat Min Mat Min Exi Min Mat Maximum Alert Level . | . . . . . . . . Low Security (%) 100 | 100 100 100 100 100 . 100 100 Level 1 . | . . . . . . . . Level 2 . | . . . . . . . . Level 3 . | . . . . . . . . Level 4 . | . . . . . . . . Level 5 . | . . . . . . . . High Security . | . . . . . . . . Max Security . | . . . . . . . . Peak Influence 83 | 10 79 22 83 13 . 47 69 Initial 22 | . . 22 . 13 . . 8 Average 15 | 1 23 . 22 3 . 4 18 Influence Increases 1100 | 15 544 . 289 . . 65 187 Destroy 0b10 Robot/C 580 | . 340 . 140 . . 40 60 Destroy 0b10 Robot/NC 160 | 15 65 . 70 . . . 10 Destroy Leader 136 | . 60 . 56 . . 10 10 Successful Hack 24 | . 18 . 6 . . . . Select Force Hacks 30 | . 30 . . . . . . Destroy Structure 5 | . 1 . 2 . . . 2 Lose Combat Pursuer 165 | . 30 . 15 . . 15 105 Influence Decreases 1100 | 15 486 58 255 34 . 42 210 Entered New Map 72 | . . 36 . 21 . . 15 Time Decay 948 | 15 441 22 245 13 . 32 180 Lost Part 80 | . 45 . 10 . . 10 15 Squads Dispatched 3 | . 2 . . . . . 1 Investigation 1 | . 1 . . . . . . Extermination . | . . . . . . . . Reinforcement 2 | . 1 . . . . . 1 Assault . | . . . . . . . . Garrison . | . . . . . . . . Intercept . | . . . . . . . . Searches Triggered . | . . . . . . . . Construction Impeded . | . . . . . . . . Haulers Reinforced . | . . . . . . . . Active Scanning Responses . | . . . . . . . . Cargo Convoy Interrupts . | . . . . . . . . Stealth | -11 -10 -10 -9 -9 -9 -8 -8 --------- Run | Yrd Mat Min Mat Min Exi Min Mat Distress Signals 8 | . 1 . 1 . . . 6 Communications Jammed . | . . . . . . . . Distress Signals . | . . . . . . . . Times Spotted 69 | . 32 . 19 . . 3 15 Peak Tracking Total 8 | . 5 . 3 . . 3 8 Tactical Retreats 8 | . 2 . 1 . . 1 4 Traps | -11 -10 -10 -9 -9 -9 -8 -8 ------- Run | Yrd Mat Min Mat Min Exi Min Mat Traps Triggered 2 | . 1 . 1 . . . . Indirectly . | . . . . . . . . Trap Hack Attempts . | . . . . . . . . Triggered . | . . . . . . . . Disarmed . | . . . . . . . . Reprogrammed . | . . . . . . . . Reused . | . . . . . . . . Traps Extracted . | . . . . . . . . Installed . | . . . . . . . . Triggered . | . . . . . . . . Machines | -11 -10 -10 -9 -9 -9 -8 -8 ---------- Run | Yrd Mat Min Mat Min Exi Min Mat Machines Disabled . | . . . . . . . . Max in Single Turn . | . . . . . . . . Machines Repaired . | . . . . . . . . Machines Dismantled . | . . . . . . . . Machines Sabotaged . | . . . . . . . . Overloaded Fab Kills . | . . . . . . . . Hacking | -11 -10 -10 -9 -9 -9 -8 -8 --------- Run | Yrd Mat Min Mat Min Exi Min Mat Machines Accessed 16 | . 8 . 3 . 2 . 3 Terminals 12 | . 6 . 3 . . . 3 Fabricators . | . . . . . . . . Repair Stations 1 | . 1 . . . . . . Recycling Units 1 | . 1 . . . . . . Scanalyzers . | . . . . . . . . Garrison Access . | . . . . . . . . Total Hacks 27 | . 16 . 6 . 2 . 3 Successful 18 | . 11 . 4 . 2 . 1 Failed 9 | . 5 . 2 . . . 2 Catastrophic . | . . . . . . . . Database Lockouts . | . . . . . . . . Manual 22 | . 12 . 6 . 1 . 3 Terminals 21 | . 12 . 6 . . . 3 Fabricators . | . . . . . . . . Repair Stations 3 | . 3 . . . . . . Recycling Units 1 | . 1 . . . . . . Scanalyzers . | . . . . . . . . Garrison Access . | . . . . . . . . Terminal Hacks 3 | . 1 . . . 2 . . Record 1 | . . . . . 1 . . Locate Traps 1 | . 1 . . . . . . Proto ID Catalog 1 | . . . . . 1 . . Fabricator Hacks . | . . . . . . . . Repair Station Hacks 2 | . 2 . . . . . . Scan Component 1 | . 1 . . . . . . Repair 1 | . 1 . . . . . . Recycling Unit Hacks . | . . . . . . . . Scanalyzer . | . . . . . . . . Garrison Access Hacks . | . . . . . . . . Unauthorized Hacks 13 | . 8 . 4 . . . 1 Terminals 12 | . 7 . 4 . . . 1 Assimilate 1 | . 1 . . . . . . Operators 2 | . 1 . 1 . . . . Skim 9 | . 5 . 3 . . . 1 Fabricators . | . . . . . . . . Repair Stations . | . . . . . . . . Recycling Units 1 | . 1 . . . . . . Tunnel 1 | . 1 . . . . . . Scanalyzers . | . . . . . . . . Garrison Access . | . . . . . . . . Data Cores Recovered . | . . . . . . . . Used . | . . . . . . . . Hacking Detections 10 | . 4 . 3 . . . 3 Full Trace Events . | . . . . . . . . Feedback Events . | . . . . . . . . Feedback Blocked . | . . . . . . . . Robot Schematics Acquired . | . . . . . . . . Robots Built . | . . . . . . . . Authchips . | . . . . . . . . Time . | . . . . . . . . Total Robot Build Rating . | . . . . . . . . Part Schematics Acquired . | . . . . . . . . Parts Built . | . . . . . . . . Authchips . | . . . . . . . . Time . | . . . . . . . . Total Part Build Rating . | . . . . . . . . Part Studies Acquired . | . . . . . . . . Parts Repaired 1 | . 1 . . . . . . Time 26 | . 26 . . . . . . Parts Recycled . | . . . . . . . . Recycled Matter . | . . . . . . . . Retrieved Matter . | . . . . . . . . Retrieved Components . | . . . . . . . . Parts Scanalyzed . | . . . . . . . . Part Schematics Acquired . | . . . . . . . . Parts Damaged . | . . . . . . . . Bothacking | -11 -10 -10 -9 -9 -9 -8 -8 ------------ Run | Yrd Mat Min Mat Min Exi Min Mat Used RIF Installer . | . . . . . . . . Robots Hacked 4 | . . . . . 4 . . Non-combat 3 | . . . . . 3 . . Combat 1 | . . . . . 1 . . Robot Hacks Applied 4 | . . . . . 4 . . parse_system 4 | . . . . . 4 . . Relay Couplers Released . | . . . . . . . . Fabnet Peak Effective % . | . . . . . . . . Robots Rewired . | . . . . . . . . Allies Hacked . | . . . . . . . . Hacks Repelled . | . . . . . . . . Allies | -11 -10 -10 -9 -9 -9 -8 -8 -------- Run | Yrd Mat Min Mat Min Exi Min Mat Total Allies . | . . . . . . . . Largest Group . | . . . . . . . . Highest-Rated Group . | . . . . . . . . Highest-Rated Ally . | . . . . . . . . Total Orders . | . . . . . . . . Ally Attacks . | . . . . . . . . Total Damage . | . . . . . . . . Kills . | . . . . . . . . Allies Corrupted . | . . . . . . . . Allies Melted . | . . . . . . . . Intel | -11 -10 -10 -9 -9 -9 -8 -8 ------- Run | Yrd Mat Min Mat Min Exi Min Mat Active Infowar (turns) 6262 | 4 2276 1652 1553 84 681 12 . Seismic 6262 | 4 2276 1652 1553 84 681 12 . Robot Analysis Total . | . . . . . . . . Derelict Logs Recovered 1 | . . 1 . . . . . Drone Launches . | . . . . . . . . Drone Recoveries . | . . . . . . . . Exploration | -11 -10 -10 -9 -9 -9 -8 -8 ------------- Run | Yrd Mat Min Mat Min Exi Min Mat Turns Passed 8006 | 86 2629 1769 1554 84 681 516 687 Spaces Moved 2436 | 44 691 678 408 36 279 147 153 Core 2 | 2 . . . . . . . Treads 1172 | . 268 . 289 36 279 147 153 Legs 1262 | 42 423 678 119 . . . . Wheels . | . . . . . . . . Hover . | . . . . . . . . Flight . | . . . . . . . . Fastest Speed 50 | 50 120 260 240 240 240 240 240 Average Speed 267 | 116 300 260 282 240 240 240 240 Slowest Speed 680 | 120 680 260 320 240 240 240 240 Overloaded Moves . | . . . . . . . . Propulsion Burnouts . | . . . . . . . . Robots Hopped . | . . . . . . . . Potential Cave-ins . | . . . . . . . . Cave-ins Triggered . | . . . . . . . . Exploration Rate (%) 43 | 4 86 94 36 8 70 31 15 Regions Visited 7 Branch Regions 4 Pre-discovered Areas 6 | . 4 1 . . 1 . . Known Exits Taken 4 | . 1 1 1 . 1 . . Unknown Exits Taken 3 | 1 . . . 1 . 1 . Scrap Searched 3 | . . 2 . . . 1 . Spaces Dug . | . . . . . . . . Terrain Destroyed . | . . . . . . . . Melee . | . . . . . . . . Projectile . | . . . . . . . . AOE . | . . . . . . . . Terrain Rammed . | . . . . . . . . Walls Destroyed . | . . . . . . . . Machines Disabled . | . . . . . . . . Actions | -11 -10 -10 -9 -9 -9 -8 -8 --------- Run | Yrd Mat Min Mat Min Exi Min Mat Total 3552 | 62 1071 682 708 35 290 291 413 Wait 797 | . 236 . 214 . . 124 223 Move 2429 | 43 690 677 407 35 278 146 153 Hop . | . . . . . . . . Pick Up 39 | 3 22 1 8 . 1 2 2 Fast Attach 19 | 8 5 . 4 . . 2 . Attach 16 | . 6 . 3 . . 2 5 Detach 4 | 1 3 . . . . . . Swap 17 | . 5 1 7 . 3 1 . Drop 22 | . 6 1 8 . 4 3 . Fire 201 | 7 97 . 56 . . 11 30 Melee 4 | . . . . . 4 . . Ram . | . . . . . . . . Kick 3 | . 1 2 . . . . . Crush 1 | . . . 1 . . . . Escape Stasis . | . . . . . . . . Rewire . | . . . . . . . . Trap . | . . . . . . . . Miscellaneous . | . . . . . . . . Route ------- -11/Scrapyard -10/Materials (discovered 4 exits: *Mat x3 / *Min) -10/Mines (discovered 2 exits: *Mat x2) -9/Materials (discovered 2 exits: *Mat / *Min) -9/Mines -9/Exiles -8/Mines -8/Materials History --------- Turn | Location | Event 11 | -11/Scrapyard | Discovered new exit (range 15) 87 | -11/Scrapyard | Entered Materials 98 | -10/Materials | Discovered new exit (range 16) 311 | -10/Materials | Build established: Mutant 568 | -10/Materials | Discovered new exit (range 5) 1351 | -10/Materials | Discovered new exit (range 4) 1534 | -10/Materials | Core integrity fell below 50% 1629 | -10/Materials | Lost 3 parts (1p1n1w) 1666 | -10/Materials | Discovered new exit (range 13) 1751 | -10/Materials | Identified exit to Mines 1751 | -10/Materials | Identified exit to Materials 1788 | -10/Materials | Learned location of 1 exit from Recycling 1817 | -10/Materials | Loaded intel: 13 trap records 1837 | -10/Materials | Learned location of Mines (-10) 1847 | -10/Materials | Learned location of 2 exits from Mines 1848 | -10/Materials | Learned 2 Mines zone layouts 1857 | -10/Materials | Learned location of Storage (-7) 1874 | -10/Materials | Learned 4 Subcaves zone layouts 2214 | -10/Materials | Repaired Seismic Detector 2716 | -10/Materials | Entered Mines 2751 | -10/Mines | Met a Derelict bent on vengeance 2768 | -10/Mines | Learned Materials security intel 3074 | -10/Mines | A weapon hastily lodged in a ceiling crevice suddenly fell to the ground 3982 | -10/Mines | Found a damaged Exp. Sensor Array with a note attached 3987 | -10/Mines | Found Prototype Device 4485 | -10/Mines | Entered Materials 4485 | -9/Materials | Evolved 2 slots: Propulsion x1, Utility x1 4486 | -9/Materials | Identified exit to Mines 5093 | -9/Materials | Build established: Scavenger-Mutant 5170 | -9/Materials | Identified Exp. Sensor Array 5501 | -9/Materials | Discovered new exit (range 9) 6039 | -9/Materials | Entered Mines 6114 | -9/Mines | Deemed a non-threat by the Exiles lab entrance 6114 | -9/Mines | Discovered new exit (range 5) 6123 | -9/Mines | Entered Exiles 6124 | -9/Exiles | Identified exit to Mines 6183 | -9/Exiles | Met 8R-AWN 6227 | -9/Exiles | Met EX-HEX 6318 | -9/Exiles | Met EX-DEC 6393 | -9/Exiles | Learned location of Zion (-6) 6434 | -9/Exiles | Met EX-BIN 6469 | -9/Exiles | Aligned with FarCom system 6472 | -9/Exiles | Given EX-Vault access code 6527 | -9/Exiles | Opened EX-Vault 6551 | -9/Exiles | Found XL Autogun Array 6610 | -9/Exiles | Warned to stay clear of 0b10 Research branches 6804 | -9/Exiles | Left Exiles lab with XL Autogun Array 6804 | -9/Exiles | Entered Mines 6914 | -8/Mines | Discovered new exit (range 10) 7320 | -8/Mines | Entered Materials 7320 | -8/Materials | Evolved 2 slots: Propulsion x1, Utility x1 7660 | -8/Materials | Lost 3 parts (2n1u) 8007 | -8/Materials | Self-destructed Last Messages --------------- 07633_ H-55 Commando destroyed. 07637_ Acquired 28 matter. 07642_ Acquired Lgt. Nuclear Core. 07643_ T-07 Excavator is excavating. 07666_ K-01 Serf collects debris. 07732_ Lgt. Armor Plating destroyed. 07733_ G-47 Trooper destroyed. 07739_ Acquired 57 matter. 07764_ K-01 Serf collects debris. 07955_ Connecting with Terminal... >>Trojan(Skim) Trojan loaded successfully. Testing... Terminal linked with 0 systems. Please expand to 4 more systems! 07983_ A-02 Transporter sends out distress signal. 07988_ ALERT: Hostiles spotted, dispatching reinforcements to Terminal M001. 07995_ Hvy. Assault Rifle destroyed. Map ----- +----------------------------------------------------+ | ?????# """ #????????????????????????????????????? | | ??????? ?????????????????????????????????????? | | ?????####+####???????????????????????????????????? | | ?????# #???????????????????????????????????? | | ?????# #???????????????????????????????????? | | ?????# #???????????????????????????????????? | | ########## #???????????????????????????????????? | | # # #???????????????????????????????????? | | # "T" # #???????????#?###???????????????????? | | # + #??????????? #???????????????????? | | # ] # #??????????? #???????????????????? | | # # #???????????aT ???????????????????? | | # """ # #??????????? ????????????????????? | | # """ # #??????????? Y ????????????????????? | | # """ # #########??# #????????????????????? | | # =! # # #??# #????????????????????? | | ###+###### + #??#Y #????????????????????? | | ??# #????# # #??#m #????????????????????? | | ??# #????# #########??# #????????????????????? | | ??# #???## ##?????????# #????????????????????? | | ?## ##### ########### #????????????????????? | | ?# w w#????????????????????? | | ?# " #????????????????????? | | ?# #????????????????????? | | ###+##### ###+####### #????????????????????? | | ####### #??#@ #????????????????????? | | #?????# ""#??# #????????????????????? | | #?????# T"#??# g#????????????????????? | | #?????# ""#??# g ???????????????????? | | #?????# ! #??# g ??????????????????? | | #?????# #??# ?????????????????? | | #?????########??# ###+#????????????????? | | #???????????????# #?? ???????????????? | | #???????????????# #?g? ??????????????? | | ##+######???????????????? #???? ?????????????? | | ?# ###########??????????? #?????"" ????????????? | | ?# # T ! #??????????? #????????????????????? | | ## # #??????????? #????????????????????? | | # """ """ #??????????? #????????????????????? | | * + """ """ #??????????? #????????????????????? | | %# """ """ #???????????kg ?????????????????????? | | !# #??????????g????Y???????????????????? | | # [ #????????????g??????????????????????? | | # #???????????????????????????????????? | | ###########???????????????????????????????????? | | #?????????????????????????????????????????????? | | ?????????????????????????????????????????????? | | ?????????????????????????????????????????????? | | ????????????????????????????????????????????? | | ##????????????????????????????????????????????? | +----------------------------------------------------+ Best States ------------- Heat Dissipation 50 Energy Generation 14 Energy Capacity 265 Matter Stores 300 Matter Capacity 300 Sight Range 16 Terrain Scan Density 10 Armor Coverage 300 Evasion (%) 55 Recoil Reduction 4 Item Schematics ----------------- None Robot Schematics ------------------ None Fabricated ------------ Nothing Repaired ---------- Seismic Detector | 25% | -10/Materials Studied --------- None Alien Tech Used ----------------- None Achievements -------------- None Challenges ------------ None Game ------ Seed PlexusXenonCorpse Manual? 0 Play Time 00:27:33 Cumulative 438.9 hours Start 2026.02.25 @ 11:40:33 End 2026.02.25 @ 12:18:51 Sessions 1 Manual Loads 0 Difficulty Rogue Special Mode None Game No. 286 Rogue 286 Adventurer 0 Explorer 0 Win Type - Total 29 Types 10/0/9/1/1/0/3/2/2/1 Lore% 84 Gallery% 78 Achievement% 72 Wizard Run 0 Options --------- Layout 1 ASCII 0 Keyboard 0 Movement Mouse Keybinds 0 Fullscreen 2 Font 24/Smallcaps Map View 50x35 Zoom Use 0% Tactical HUD 1 Map Filters NONE Filters NONE Steam 1 RUN: 6168c33e-a98d-4863-b4de-99debf4878ce